{"text_format":"1","workbook":"xlsx","n_sheets":2,"sheets":["Pasiūlymas","Subtiekėjai ir priedai"],"not_rendered":{"charts":0,"images":0,"macros":1,"external_links":0,"defined_names":1,"comments":0,"pivot_tables":0},"unopened":[],"bounds":{"document_bytes":16777216,"sheet_cells":100000,"rows_first":2000,"rows_last":500,"rows_between":2000,"halvings":0,"cell_chars":16384,"cell_head_chars":4096},"cells_cut":0,"cells_raw":0,"read":"whole","date_system":"1900"}

{"sheet":"Pasiūlymas","index":0,"n_rows":151,"n_cols":7,"rows_kept":151,"cut":false,"hidden":false,"merged":[[27,0,27,5],[28,0,28,5],[24,0,24,5],[25,0,25,5],[26,0,26,5],[18,0,18,1],[18,2,18,5],[23,0,23,5],[19,0,19,1],[20,0,20,1],[19,2,19,5],[20,2,20,5],[22,0,22,5],[29,0,29,2],[29,3,29,5],[11,0,11,1],[11,2,11,5],[12,0,12,1],[12,2,12,5],[13,0,13,1],[13,2,13,5],[14,0,14,1],[14,2,14,5],[15,0,15,1],[15,2,15,5],[16,0,16,1],[16,2,16,5],[17,0,17,1],[17,2,17,5]]}
[]
["PIKIMO SĄLYGŲ PRIEDAS \"PASIŪLYMO FORMA\""]
[]
["TRENIRUOKLIAI"]
[]
["Kam:","Gynybos resursų agentūra prie KAM"]
[]
["Data:","2022-08-12"]
["Nr.:","220812/01"]
["Vieta:","Klaipėda"]
[]
["Tiekėjo pavadinimas / Ūkio subjektų grupės nariai:",null,"MEGASPORTAS, UAB"]
["Tiekėjo kodas (-ai):",null,304975508]
["Tiekėjo adresas (-ai):",null," \tŠilutės pl. 101A, LT-95112 Klaipėda"]
["Tiekėjo PVM mokėtojo kodas(-ai):",null,"LT100012443815"]
["Tiekėjo / Ūkio subjektų grupės atsakingo partnerio sąskaitos numeris, banko pavadinimas ir banko kodas (-ai):"]
["Asmens atsakingo už pasiūlymą vardas, pavardė:"]
["Asmens atsakingo už pasiūlymą telefono numeris, el. pašto adresas:"]
["Tiekėjo / Ūkio subjektų grupės, laimėjimo atveju, pasirašančio sutartį asmens vardas, pavardė, pareigos:"]
["Tiekėjo / Ūkio subjektų grupės, laimėjimo atveju, už sutarties vykdymą atsakingo asmens vardas, pavardė, telefono numeris, elektroninio pašto adresas:"]
["(1) Tiekėjo / Ūkio subjektų grupės narių, (2) ūkio subjektų, kurių pajėgumais remiamasi, ir (3) jei pašalinimo pagrindai taikomi visiems subtiekėjams - subtiekėjų, kolegialaus priežiūros organo (Stebėtojų tarybos) ir (ar) kolegialaus valdymo organo (Valdybos) narių sąrašas (jei sudaryta) ir (ar) asmuo, kuriam suteikti VPĮ 46 str. 2 d. 2 p. numatyti įgaliojimai",null,null,null,null,null,{"$f":"IF((SUMPRODUCT(--(C21=\"\"))>0), \"Privaloma užpildyti, kai taikomi pašalinimo pagrindai\", \"\")","v":"Privaloma užpildyti, kai taikomi pašalinimo pagrindai"}]
[]
["Tiekėjo patvirtinimai:"]
["1. Šiuo pasiūlymu pažymime, kad sutinkame su visomi pirkimo sąlygomis, nustatytomis:"]
["1.1. viešojo pirkimo dokumentuose"]
["1.2. kituose pirkimo dokumentuose (jų paaiškinimuose, papildymuose)."]
["2. Patvirtiname, kad informacija ir duomenys, pateikti pasiūlyme, yra teisingi ir apima viską, ko reikia tinkamam sutarties įvykdymui"]
["3. Patvirtiname, kad jei pasiūlyme nenurodyti kolegialaus priežiūros/valdymo organų nariai, šie organai juridiniuose asmenyse nėra sudaryti (taikoma, kai pirkimo dokumentuose nustatyti pašalinimo pagrindai)."]
["4. Pasiūlymas galioja iki termino, nustatyto pirkimo dokumentuose."]
["5. Tais atvejais, kai pagal galiojančius teisės aktus tiekėjui nereikia mokėti PVM, jis nurodo priežastis, dėl kurių PVM nemoka:"]
["6. Tiekėjas kainas pateikia, nurodydamas ne daugiau skaičių po kablelio, nei leidžiama pirkimo dokumentuose."]
["1. DALIS","BĖGIMO TAKELIS (4AG)"]
[]
["Tiekėjo pasiūlymas:"]
["Nr.","Pavadinimas","Kiekis","Mato vienetas","Kaina su PVM","Suma su PVM","Gamintojas, modelis"]
["1.","Bėgimo takelis (4AG)"]
["1.1.","Bėgimo takelis (4AG)",20,"vnt.",2057,{"$f":"IF(ISBLANK(E37),\"\", PRODUCT(C37,E37))","v":41140},"Evolve Fitness, EV-CT-400L-LCD"]
[null,null,null,null,"Suma be PVM",{"$f":"IF(OR(ISBLANK(F39),F39=\"Tiekėjo text\"), \"\", F40-F39)","v":34000}]
[null,null,null,null,"PVM suma",{"$f":"F40-SUM(F40/1.21)","v":7140}]
[null,null,null,null,"Suma su PVM",{"$f":"IF((SUMPRODUCT(--(F37:F37=\"\"))>0), \"\", SUM(F37:F37))","v":41140},{"$f":"IF((SUMPRODUCT(--(F37:F37=\"\"))>0), \"Neužpildytos visų objektų kainos\", \"\")","v":""}]
[]
[]
[]
["2. DALIS","ELIPSINIS TRENIRUOKLIS"]
[]
["Tiekėjo pasiūlymas:"]
["Nr.","Pavadinimas","Kiekis","Mato vienetas","Kaina su PVM","Suma su PVM","Gamintojas, modelis"]
["2.","Elipsinis treniruoklis"]
["2.1.","Elipsinis treniruoklis",8,"vnt.",1573,{"$f":"IF(ISBLANK(E49),\"\", PRODUCT(C49,E49))","v":12584},"Evolve Fitness, EV-CE-E12-OPT"]
[null,null,null,null,"Suma be PVM",{"$f":"IF(OR(ISBLANK(F51),F51=\"Tiekėjo text\"), \"\", F52-F51)","v":10400}]
[null,null,null,null,"PVM suma",2184]
[null,null,null,null,"Suma su PVM",{"$f":"IF((SUMPRODUCT(--(F49:F49=\"\"))>0), \"\", SUM(F49:F49))","v":12584},{"$f":"IF((SUMPRODUCT(--(F49:F49=\"\"))>0), \"Neužpildytos visų objektų kainos\", \"\")","v":""}]
[]
[]
[]
["3. DALIS","DVIRAČIAI TRENIRUOKLIAI"]
[]
["Tiekėjo pasiūlymas:"]
["Nr.","Pavadinimas","Kiekis","Mato vienetas","Kaina su PVM","Suma su PVM","Gamintojas, modelis"]
["3.","Dviračiai treniruokliai"]
["3.1.","Dviratis treniruoklis",4,"vnt.",null,{"$f":"IF(ISBLANK(E61),\"\", PRODUCT(C61,E61))","v":""}]
["3.2.","Dviratis treniruoklis su oro pasipriešinimu",2,"vnt.",null,{"$f":"IF(ISBLANK(E62),\"\", PRODUCT(C62,E62))","v":""}]
[null,null,null,null,"Suma be PVM",{"$f":"IF(OR(ISBLANK(F64),F64=\"Tiekėjo text\"), \"\", F65-F64)","v":""}]
[null,null,null,null,"PVM suma"]
[null,null,null,null,"Suma su PVM",{"$f":"IF((SUMPRODUCT(--(F61:F62=\"\"))>0), \"\", SUM(F61:F62))","v":""},{"$f":"IF((SUMPRODUCT(--(F61:F62=\"\"))>0), \"Neužpildytos visų objektų kainos\", \"\")","v":"Neužpildytos visų objektų kainos"}]
[]
[]
[]
["4. DALIS","IRKLAVIMO TRENIRUOKLIS"]
[]
["Tiekėjo pasiūlymas:"]
["Nr.","Pavadinimas","Kiekis","Mato vienetas","Kaina su PVM","Suma su PVM","Gamintojas, modelis"]
["4.","Irklavimo treniruoklis"]
["4.1.","Irklavimo treniruoklis",6,"vnt.",null,{"$f":"IF(ISBLANK(E74),\"\", PRODUCT(C74,E74))","v":""}]
[null,null,null,null,"Suma be PVM",{"$f":"IF(OR(ISBLANK(F76),F76=\"Tiekėjo text\"), \"\", F77-F76)","v":""}]
[null,null,null,null,"PVM suma"]
[null,null,null,null,"Suma su PVM",{"$f":"IF((SUMPRODUCT(--(F74:F74=\"\"))>0), \"\", SUM(F74:F74))","v":""},{"$f":"IF((SUMPRODUCT(--(F74:F74=\"\"))>0), \"Neužpildytos visų objektų kainos\", \"\")","v":"Neužpildytos visų objektų kainos"}]
[]
[]
[]
["5. DALIS","JĖGOS LAVINIMO TRENIRUOKLIAI"]
[]
["Tiekėjo pasiūlymas:"]
["Nr.","Pavadinimas","Kiekis","Mato vienetas","Kaina su PVM","Suma su PVM","Gamintojas, modelis"]
["5.","Jėgos lavinimo treniruokliai"]
["5.1.","Treniruoklis deltinių raumenų užpakalinei daliai ir krūtinei",2,"vnt.",1512.5,{"$f":"IF(ISBLANK(E86),\"\", PRODUCT(C86,E86))","v":3025},"Evolve Fitness, EV-SC-EC-003"]
["5.2.","Suolas treniruotis sėdint kampu („Larry Scott“)",2,"vnt.",302.5,605,"Evolve Fitness, EV-BN-EC-020"]
["5.3.","Pilvo preso suolas reguliuojamu kampu",2,"vnt.",363,726,"Evolve Fitness, EV-BN-EC-288"]
["5.4."," „Smito staklės“ ir pritūpimų stovai",2,"vnt.",1210,2420,"Evolve Fitness, EV-PL-EC-001"]
["5.5."," Kojų treniruoklis – spaudimas kampu (Leg-press)",2,"vnt.",1573,3146,"Evolve Fitness, EV-PL-MT-091"]
["5.6.","Universalus kojų treniruoklis ",2,"vnt.",1512.5,3025,"Evolve Fitness, EV-SC-EC-025"]
["5.7.","Treniruoklis „kvadratų sistema“",2,"vnt.",6352.5,12705,"Evolve Fitness, EV-SC-EC-500-OPT"]
["5.8.","Treniruoklis pečiams sėdint – spaudimui į viršų",2,"vnt.",1452,2904,"Evolve Fitness, EV-SC-EC-004"]
["5.9.","Treniruoklis krūtinei sėdint – spaudimui",2,"vnt.",1452,2904,"Evolve Fitness, EV-SC-EC-001"]
["5.10.","Jėgos trikovės spaudimo ir pritūpimų suolas ",2,"vnt.",1452,2904,"Evolve Fitness, EV-BN-PL-100"]
["5.11.","Universalus treniruoklis nugarai su vertikalia ir horizontalia trauka ",2,"vnt.",1452,2904,"Evolve Fitness, EV-SC-EC-026-120H"]
["5.12.","Blauzdų treniruoklis sėdint",2,"vnt.",326.7,653.4,"Evolve Fitness, EV-PL-EC-011"]
["5.13.","Treniruoklis kojų dvigalviams raumenims sėdint (lenkimas) ",2,"vnt.",1452,2904,"Evolve Fitness, EV-SC-EC-025"]
["5.14.","Treniruoklis trapecijai ir nugarai su laisvais svoriais",2,"vnt.",1210,2420,"Evolve Fitness, EV-PL-MT-076"]
["5.15.","Kojų treniruoklis (Hakenšmito)",2,"vnt.",1452,2904,"Evolve Fitness, EV-PL-MT-071"]
["5.16.","Spaudimo suolas kampu (žemyn galva) ",2,"vnt.",641.29999999999995,1282.5999999999999,"Evolve Fitness, EV-PL-MT-046"]
["5.17.","Spaudimo suolas kampu (aukštyn galva) ",2,"vnt.",641.29999999999995,1282.5999999999999,"Evolve Fitness, EV-PL-MT-046"]
["5.18.","Spaudimo suolas pečiams (deltinis raumuo)",2,"vnt.",580.79999999999995,1161.5999999999999,"Evolve Fitness, EV-PL-BT-052"]
["5.19.","Treniruoklis nugarai, horizontalus – atrėmus krūtinę ",2,"vnt.",1089,2178,"Evolve Fitness, EV-PL-MT-025"]
["5.20.","Treniruoklis pečiams – mostai į šonus ",2,"vnt.",1512.5,3025,"Evolve Fitness, EV-SC-EC-034"]
["5.21.","Treniruoklis nugarai – atsilenkimams ",2,"vnt.",726,1452,"Evolve Fitness, EV-BN-PR-032"]
["5.22.","Suolas nugarai (atsilenkimai kampu) ",2,"vnt.",363,726,"Evolve Fitness, EV-BN-EC-009"]
["5.23.","Treniruoklis kojų mostams į šonus stovint ",2,"vnt.",1512.5,3025,"Evolve Fitness, EV-SC-EC-017"]
["5.24.","Spaudimo suolas gulint horizontaliai ",2,"vnt.",605,1210,"Evolve Fitness, EV-BN-EC-509"]
["5.25.","Kojų treniruoklis gulint ",2,"vnt.",1331,2662,"Evolve Fitness, EV-PL-MT-018"]
["5.26.","Pilvo preso stovas – kelti kojas ",2,"vnt.",544.5,1089,"Evolve Fitness, EV-BN-PR-215"]
["5.27.","Universalus suolas (reguliuojamais kampais)",4,"vnt.",387.2,1548.8,"Evolve Fitness, EV-BN-EC-034"]
["5.28.","Suolas su atlošu",2,"vnt.",211.75,423.5,"Evolve Fitness, EV-BN-EC-024"]
["5.29."," Lygiagretės",2,"vnt.",605,1210,"Evolve Fitness, EV-BN-PR-215"]
["5.30.","Pastatomas skersinis su lygiagretėmis",2,"vnt.",641.29999999999995,1282.5999999999999,"Evolve Fitness, EV-BN-EC-008"]
[null,null,null,null,"Suma be PVM",{"$f":"IF(OR(ISBLANK(F117),F117=\"Tiekėjo text\"), \"\", F118-F117)","v":57610.000000000007}]
[null,null,null,null,"PVM suma",12098.1]
[null,null,null,null,"Suma su PVM",{"$f":"IF((SUMPRODUCT(--(F86:F115=\"\"))>0), \"\", SUM(F86:F115))","v":69708.100000000006},{"$f":"IF((SUMPRODUCT(--(F86:F115=\"\"))>0), \"Neužpildytos visų objektų kainos\", \"\")","v":""}]
[]
[]
[]
["6. DALIS","ŠTANGOS IR SVARMENYS"]
[]
["Tiekėjo pasiūlymas:"]
["Nr.","Pavadinimas","Kiekis","Mato vienetas","Kaina su PVM","Suma su PVM","Gamintojas, modelis"]
["6.","Štangos ir svarmenys"]
["6.1.","Stovas štangutėms, grifams ir svarmenims.",2,"vnt.",181.5,{"$f":"IF(ISBLANK(E127),\"\", PRODUCT(C127,E127))","v":363},"Šiaulių Atletas, B18"]
["6.2.","Jėgos trikovės grifas (štanga)",4,"vnt.",199.65,798.6,"Evolve Fitness, EV-OB-PL-220"]
["6.3.","Grifas (štanga)",6,"vnt.",121,726,"Evolve Fitness, EV-OB-EC-220"]
["6.4.","Grifukai (štangutės)",6,"kompl.",217.79999999999998,1306.8,"Evolve Fitness, EV-OB-CB-120, EV-OB-EC-150, EV-OB-TB-085"]
["6.5.","Užraktas olimpiniam grifui",14,"kompl.",2.42,33.879999999999995,"Evolve Fitness, EV-OC-SC-01"]
["6.6.","Diskiniai svarsčiai/svarmenys",4,"kompl.",2299,9196,"Evolve Fitness, EV-WP-RB-2,5-25N, EV-WP-PP-0,25-25"]
["6.7.","Svarmenys (giros)16 kg, 24 kg, 32 kg (komplektas)",6,"kompl.",217.79999999999998,1306.8,"Evolve Fitness, EV-KB-IK-16-32"]
["6.8.","3/5 taškų eglutė",6,"vnt.",157.29999999999998,943.8,"Evolve Fitness, EV-RS-TR-266"]
["6.9.","Hantelių komplektas (1-40 kg)",4,"kompl.",2117.5,8470,"Evolve Fitness, EV-DS-HX-1-40"]
["6.10.","Stovas hanteliams",4,"vnt.",290.39999999999998,1161.5999999999999,"Evolve Fitness, EV-RS-HR-200"]
[null,null,null,null,"Suma be PVM",{"$f":"IF(OR(ISBLANK(F138),F138=\"Tiekėjo text\"), \"\", F139-F138)","v":20087.999999999996}]
[null,null,null,null,"PVM suma",4218.4799999999996]
[null,null,null,null,"Suma su PVM",{"$f":"IF((SUMPRODUCT(--(F127:F136=\"\"))>0), \"\", SUM(F127:F136))","v":24306.479999999996},{"$f":"IF((SUMPRODUCT(--(F127:F136=\"\"))>0), \"Neužpildytos visų objektų kainos\", \"\")","v":""}]
[]
[]
[]
["7. DALIS","BĖGIMO TAKELIS (5 AG)"]
[]
["Tiekėjo pasiūlymas:"]
["Nr.","Pavadinimas","Kiekis","Mato vienetas","Kaina su PVM","Suma su PVM","Gamintojas, modelis"]
["7.","Bėgimo takelis (5 AG)"]
["7.1.","Bėgimo takelis (5 AG)",20,"vnt.",3025,{"$f":"IF(ISBLANK(E148),\"\", PRODUCT(C148,E148))","v":60500},"Evolve Fitness, EV-CT-500-LCD"]
[null,null,null,null,"Suma be PVM",{"$f":"IF(OR(ISBLANK(F150),F150=\"Tiekėjo text\"), \"\", F151-F150)","v":50000}]
[null,null,null,null,"PVM suma",10500]
[null,null,null,null,"Suma su PVM",{"$f":"IF((SUMPRODUCT(--(F148:F148=\"\"))>0), \"\", SUM(F148:F148))","v":60500},{"$f":"IF((SUMPRODUCT(--(F148:F148=\"\"))>0), \"Neužpildytos visų objektų kainos\", \"\")","v":""}]

{"sheet":"Subtiekėjai ir priedai","index":1,"n_rows":100,"n_cols":11,"rows_kept":100,"cut":false,"hidden":false,"merged":[[23,0,23,1],[22,0,22,1],[21,0,21,1],[20,0,20,1],[19,0,19,1],[28,0,28,1],[27,0,27,1],[26,0,26,1],[25,0,25,1],[24,0,24,1],[23,2,23,4],[22,2,22,4],[21,2,21,4],[20,2,20,4],[19,2,19,4],[28,2,28,4],[27,2,27,4],[26,2,26,4],[25,2,25,4],[24,2,24,4],[23,5,23,7],[22,5,22,7],[21,5,21,7],[20,5,20,7],[19,5,19,7],[28,5,28,7],[27,5,27,7],[26,5,26,7],[25,5,25,7],[24,5,24,7],[23,8,23,9],[22,8,22,9],[21,8,21,9],[20,8,20,9],[19,8,19,9],[28,8,28,9],[27,8,27,9],[26,8,26,9],[25,8,25,9],[24,8,24,9],[16,0,16,10],[18,8,18,9],[18,5,18,7],[18,2,18,4],[18,0,18,1],[13,0,13,1],[12,0,12,1],[11,0,11,1],[10,0,10,1],[13,8,13,9],[12,8,12,9],[11,8,11,9],[10,8,10,9],[4,0,4,1],[5,5,5,7],[5,0,5,1],[9,0,9,1],[13,2,13,4],[12,2,12,4],[11,2,11,4],[10,2,10,4],[9,2,9,4],[13,5,13,7],[12,5,12,7],[11,5,11,7],[10,5,10,7],[9,5,9,7],[1,0,2,10],[30,0,30,9],[14,5,14,7],[8,5,8,7],[7,5,7,7],[6,5,6,7],[14,8,14,9],[8,8,8,9],[7,8,7,9],[6,8,6,9],[14,0,14,1],[8,0,8,1],[7,0,7,1],[6,0,6,1],[14,2,14,4],[8,2,8,4],[7,2,7,4],[9,8,9,9],[6,2,6,4],[5,2,5,4],[5,8,5,9],[4,8,4,9],[4,5,4,7],[4,2,4,4],[32,0,32,9],[34,7,34,9],[34,1,34,6],[45,7,45,9],[42,7,42,9],[37,7,37,9],[36,7,36,9],[35,7,35,9],[44,7,44,9],[43,7,43,9],[41,7,41,9],[40,7,40,9],[39,7,39,9],[38,7,38,9],[45,1,45,6],[44,1,44,6],[47,0,47,9],[52,4,52,9],[50,4,50,9],[52,0,52,3],[50,0,50,3],[38,1,38,6],[37,1,37,6],[36,1,36,6],[35,1,35,6],[43,1,43,6],[42,1,42,6],[41,1,41,6],[40,1,40,6],[39,1,39,6]]}
[]
["Ūkio subjektai (įskaitant kvazisubtiekėjus - fiziniai asmenys, kuriuos ketinama įdarbinti pirkimo laimėjimo atveju), kurių pajėgumais tiekėjas remiasi, kad atitiktų keliamus kvalifikacijos reikalavimus:"]
[]
[]
["Pavadinimas*",null,"Kodas, adresas",null,null,"Perduodami įsipareigojimai",null,null,"Perduodamų įsipareigojimų dalis nuo visos pirkimo sutarties (Eur arba %)",null,"Kval. Reikalavimo Nr."]
[]
[]
[]
[]
[]
[]
[]
[]
[]
[]
[]
["Subtiekėjams / subteikėjams / subrangovams numatomos perduoti veiklos (privaloma nurodyti) ir šių ūkio subjektų pavadinimai (jei žinomi):"]
[]
["Pavadinimas",null,"Kodas, adresas",null,null,"Perduodama veikla*",null,null,"Perduodamos veiklos dalis nuo visos pirkimo sutarties (Eur arba %)"]
[]
[]
[]
[]
[]
[]
[]
[]
[]
[]
[]
[]
[]
["Kartu su pasiūlymu pateikiami šie dokumentai:"]
[]
["Nr.","Dokumento  pavadinimas",null,null,null,null,null,"Dokumentas yra konfidencialus? Taip/Ne"]
["1","Jungtinės veiklos kopija (jei taikoma)"]
["2","Europos bendrasis viešųjų pirkimų dokumentas"]
["3","Subtiekimo sutartis, ketinimų protokolas, preliminarios sutartys ar kiti dokumentai, patvirtinantys, kad laimėjus pirkimą tiekėjui bus prieinami kitų ūkio subjektų ištekliai (jei pasitelkiami kvalifikacijos atitikimui)"]
[]
[]
[]
[]
[]
[]
[]
[]
[]
["Pasiūlyme nurodyta Prekės kaina, išskyrus jos sudedamąsias dalis, subtiekėjai, taip pat kita informacija, kuri teisės aktų nustatyta tvarka turi būti skelbiama arba kitokiu būdu viešai prieinama visuomenei, nėra laikoma konfidencialia informacija. Konfidencialią informaciją sudaro, visų pirma, komercinė (gamybinė) paslaptis ir konfidencialieji pasiūlymų aspektai. Informacija, kurią viešai skelbti įpareigoja Lietuvos Respublikos įstatymai, negali būti tiekėjo nurodoma kaip konfidenciali, todėl, tiekėjui nurodžius tokią informaciją kaip konfidencialią, perkančioji organizacija turi teisę ją skelbti. Jei tiekėjas nenurodo konfidencialios informacijos, laikoma, kad konfidencialios informacijos tiekėjo pasiūlyme nėra. Vadovaujantis Informacijos viešinimo Centrinėje viešųjų pirkimų informacinėje sistemoje tvarkos aprašu, patvirtintu Viešųjų pirkimų tarnybos direktoriaus 2017 m. birželio 19 d. įsakymu Nr. 1S-91 „Dėl Informacijos viešinimo Centrinėje viešųjų pirkimų informacinėje sistemoje tvarkos aprašo patvirtinimo“, perkančioji organizacija laimėjusio dalyvio pasiūlymą, išskyrus informaciją, kurią tiekėjas nurodė kaip konfidencialią, paskelbs CVP IS."]
[]
[]
["Tiekėjo arba jo įgalioto asmens pareigų pavadinimas:"]
[]
["Pasirašančio asmens vardas ir pavardė:"]
[]
[]
[]
[]
[]
[]
[]
[]
[]
[]
[]
[]
[]
[]
[]
[]
[]
[]
[]
[]
[]
[]
[]
[]
[]
[]
[]
[]
[]
[]
[]
[]
[]
[]
[]
[]
[]
[]
[]
[]
[]
[]
[]
[]
[]
[]
["2072 2022-06-30 16:06:16"]